bitfinex-derivatives/quotes_BTCF0:USTF0_20250922
["timestamp","ask_amount","ask_price","bid_price","bid_amount"]
[1758502468186,0.98649734,114610.0,114600.0,0.02267]
[1758502468978,0.6472,114610.0,114600.0,0.02267]
[1758502469179,0.98649734,114610.0,114600.0,0.0004]
[1758502470186,0.98649734,114610.0,114600.0,0.92364]
[1758502470979,0.98649734,114610.0,114600.0,0.0004]
[1758502471384,0.01065,114600.0,114590.0,0.92318]
[1758502471583,0.73356734,114600.0,114590.0,0.92268]
[1758502472184,0.73356734,114600.0,114580.0,1.83858]
[1758502472185,0.98356734,114600.0,114580.0,1.83858]
[1758502472388,0.73356734,114590.0,114580.0,0.0001]
[1758502472593,0.73356734,114590.0,114580.0,0.0004]
[1758502472994,0.73356734,114590.0,114570.0,0.93625]
[1758502473193,0.72291734,114580.0,114570.0,1.0465424]
[1758502473493,0.72291734,114580.0,114570.0,1.0464424]
[1758502473693,0.69427261,114580.0,114570.0,1.0464424]
[1758502473898,0.42316992,114580.0,114570.0,1.0464424]
[1758502474497,0.42899465,114580.0,114570.0,1.2964424]
[1758502474798,0.3608,114590.0,114580.0,0.1221048]
[1758502474996,0.3608,114590.0,114580.0,0.46140214]
[1758502475198,0.3608,114590.0,114580.0,0.1221048]
[1758502476093,0.3618,114590.0,114580.0,0.1221048]
[1758502476500,0.3618,114590.0,114580.0,0.46140214]
[1758502477597,0.3618,114590.0,114580.0,0.1221048]
[1758502479489,0.3618,114590.0,114580.0,0.46140214]
[1758502479703,0.001,114590.0,114580.0,0.71140214]
[1758502479895,0.001,114590.0,114580.0,1.07220214]
[1758502480202,0.001,114590.0,114580.0,0.71140214]
[1758502480390,0.001,114590.0,114580.0,1.07220214]
[1758502480591,0.001,114590.0,114580.0,0.71140214]
[1758502480793,0.3608,114610.0,114600.0,0.03489]
[1758502481001,0.3608,114610.0,114600.0,1.38314694]
[1758502481203,0.3608,114610.0,114600.0,1.63314694]
[1758502481401,0.42981368,114620.0,114610.0,0.1220818]
[1758502481602,0.45263368,114620.0,114610.0,1.0436818]
[1758502482303,0.42981368,114620.0,114610.0,1.0436818]
[1758502482698,0.3608,114620.0,114610.0,1.38297914]
[1758502483006,0.3638,114620.0,114610.0,1.38297914]
[1758502483396,0.3638,114620.0,114610.0,1.38273914]
[1758502483595,0.003,114620.0,114610.0,1.38273914]
[1758502485908,0.003,114620.0,114610.0,1.38237914]
[1758502487202,0.003,114620.0,114610.0,1.63213914]
[1758502487508,0.003,114620.0,114610.0,1.07217914]
[1758502487701,0.003,114620.0,114610.0,1.99289914]
[1758502487902,0.003,114620.0,114610.0,1.99285914]
[1758502488303,0.003,114620.0,114610.0,2.03775914]
[1758502488605,0.003,114620.0,114610.0,2.03767914]
[1758502489107,0.003,114620.0,114610.0,1.11707914]
[1758502489306,0.003,114620.0,114610.0,2.03747914]
[1758502489606,0.003,114620.0,114610.0,1.11707914]
[1758502489904,0.003,114620.0,114610.0,2.03739914]
[1758502490107,0.003,114620.0,114610.0,1.11707914]
[1758502490301,0.003,114620.0,114610.0,2.03731914]
[1758502490699,0.003,114620.0,114610.0,1.11707914]
[1758502490895,0.003,114620.0,114610.0,2.03727914]
[1758502493209,0.003,114620.0,114610.0,2.03715914]
[1758502493413,0.003,114620.0,114610.0,1.6974618]
[1758502493601,0.003,114620.0,114610.0,1.0866618]
[1758502494109,0.003,114620.0,114610.0,1.42595914]
[1758502494512,0.003,114620.0,114610.0,1.42591914]
[1758502495611,0.003,114620.0,114610.0,1.42575914]
[1758502496410,0.003,114620.0,114610.0,0.50627914]
[1758502496610,0.003,114620.0,114610.0,1.42559914]
[1758502496910,0.003,114620.0,114610.0,1.42547914]
[1758502497107,0.003,114620.0,114610.0,0.50627914]
[1758502497309,0.63628,114620.0,114610.0,1.0860618]
[1758502497511,0.63628,114620.0,114610.0,0.1669817]
[1758502497812,0.97557734,114620.0,114610.0,0.1673817]
[1758502498013,0.97557734,114620.0,114610.0,1.0860217]
[1758502498211,0.97557734,114620.0,114610.0,1.0864217]
[1758502498413,0.63628,114620.0,114610.0,1.0864217]
[1758502500006,0.253,114620.0,114610.0,1.42571904]
[1758502500514,0.003,114620.0,114610.0,1.42571904]
[1758502501216,0.3638,114620.0,114610.0,1.42527904]
[1758502501513,0.003,114620.0,114610.0,1.78607904]
[1758502502105,0.003,114620.0,114610.0,0.86747904]
[1758502502306,0.003,114620.0,114610.0,1.78583904]
[1758502504505,0.003,114620.0,114610.0,1.71567221]
[1758502505715,0.003,114620.0,114610.0,1.35483221]
[1758502505916,0.3638,114620.0,114610.0,0.1673817]
[1758502506116,0.3638,114620.0,114610.0,1.0851017]
[1758502506117,0.38628,114620.0,114610.0,1.0851017]
[1758502506616,0.38628,114620.0,114610.0,1.0850217]
[1758502507215,0.38628,114620.0,114610.0,1.0849817]
[1758502507419,0.38628,114620.0,114610.0,1.0845817]
[1758502507612,0.38628,114620.0,114610.0,1.0849817]
[1758502507920,0.38628,114620.0,114610.0,1.0845417]
[1758502508117,0.38628,114620.0,114610.0,1.0847817]
[1758502508118,0.63628,114620.0,114610.0,1.0847817]
[1758502508318,0.63628,114620.0,114610.0,0.1673817]
[1758502508319,0.91638051,114620.0,114610.0,0.1673817]
[1758502508519,0.91638051,114620.0,114610.0,0.98453]
[1758502508721,0.91638051,114620.0,114610.0,0.98493]
[1758502509212,0.91638051,114620.0,114610.0,0.0453]
[1758502509522,0.63628,114620.0,114610.0,1.0628917]
[1758502511623,0.78108,114620.0,114610.0,1.0628917]
[1758502514431,0.78108,114620.0,114610.0,0.08011]
[1758502514630,0.79173,114620.0,114610.0,0.98351]
[1758502514928,1.06118051,114620.0,114610.0,0.9613]
[1758502515227,1.06118051,114620.0,114610.0,0.9617]
[1758502515428,1.05053051,114620.0,114610.0,1.0833016]
[1758502515628,1.05053051,114620.0,114610.0,1.0837016]
[1758502516530,0.78108,114620.0,114610.0,1.0837016]
[1758502517430,0.78108,114620.0,114610.0,0.99651]
[1758502517727,1.06118051,114620.0,114610.0,0.96126]
[1758502518727,1.06118051,114620.0,114610.0,0.9611]
[1758502518932,1.06118051,114620.0,114610.0,0.9607]
[1758502519131,0.81118051,114620.0,114610.0,0.99591]
[1758502519334,0.81118051,114620.0,114610.0,0.9611]
[1758502521432,0.81118051,114620.0,114610.0,0.0453]
[1758502521638,0.91638051,114620.0,114610.0,0.0453]
[1758502521833,0.01065,114600.0,114570.0,0.1028389]
[1758502522133,0.38326,114580.0,114570.0,0.1220289]
[1758502522329,0.38326,114580.0,114570.0,1.0372689]
[1758502522546,0.38326,114580.0,114570.0,1.0376689]
[1758502522738,0.38326,114580.0,114570.0,1.0372689]
[1758502523029,0.38326,114580.0,114570.0,1.0406689]
[1758502523230,0.3608,114580.0,114570.0,1.0406689]
[1758502524228,0.3608,114590.0,114580.0,0.0872087]
[1758502524435,0.38326,114590.0,114580.0,0.1216387]
[1758502525736,0.38426,114590.0,114580.0,0.1216387]
[1758502525924,0.45474374,114590.0,114580.0,0.1216387]
[1758502526938,0.43228374,114590.0,114580.0,0.1216387]
[1758502527534,0.45373374,114590.0,114580.0,0.1216387]
[1758502540856,0.45373374,114590.0,114580.0,0.94675]
[1758502541648,0.59853374,114590.0,114580.0,1.0339648]
[1758502542150,0.07148374,114590.0,114580.0,1.30341531]
[1758502542546,0.43228374,114590.0,114580.0,1.30341531]
[1758502542944,0.001,114590.0,114580.0,1.91421531]
[1758502543254,0.001,114590.0,114580.0,0.64109531]
[1758502543454,0.001,114590.0,114580.0,0.3716448]
[1758502543648,0.38325,114590.0,114580.0,0.1216448]
[1758502543848,0.45153636,114590.0,114580.0,1.0332448]
[1758502544247,0.45153636,114590.0,114580.0,1.0336448]
[1758502544443,0.45153636,114590.0,114580.0,0.1216448]
[1758502544652,0.45153636,114590.0,114580.0,1.0335648]
[1758502544848,0.45153636,114590.0,114580.0,1.0334448]
[1758502545055,0.45153636,114590.0,114580.0,1.0334048]
[1758502545243,0.45153636,114590.0,114580.0,0.03483]
[1758502545448,0.45153636,114590.0,114580.0,1.0333647]
[1758502545747,0.45153636,114590.0,114580.0,1.0332447]
[1758502548556,0.45153636,114590.0,114580.0,1.2504307]
[1758502549649,0.45153636,114590.0,114580.0,0.3392307]
[1758502549856,0.45153636,114590.0,114580.0,0.1220447]
[1758502550056,0.68219236,114590.0,114580.0,0.1220447]
[1758502550450,0.68219236,114590.0,114580.0,1.0320047]
[1758502550655,0.68219236,114590.0,114580.0,1.0324047]
[1758502551355,0.45153636,114590.0,114580.0,1.2495907]
[1758502551752,0.45153636,114590.0,114580.0,1.0324047]
[1758502551958,0.45153636,114590.0,114580.0,1.2495907]
[1758502552455,0.45153636,114590.0,114580.0,1.0324047]
[1758502554153,0.45153636,114590.0,114580.0,1.2495907]
[1758502555561,0.45153636,114590.0,114580.0,1.0324047]
[1758502555860,0.45153636,114590.0,114580.0,1.2495907]
[1758502556359,0.001,114590.0,114580.0,1.4995907]
[1758502556657,0.001,114590.0,114580.0,1.8603907]
[1758502557256,0.001,114590.0,114580.0,1.93821266]
[1758502557759,0.001,114590.0,114580.0,1.8603907]
[1758502557959,0.001,114590.0,114580.0,1.93821266]
[1758502558260,0.001,114590.0,114580.0,0.7328447]
[1758502558460,0.001,114590.0,114580.0,1.8587907]
[1758502559966,0.001,114590.0,114580.0,1.8585107]
[1758502560862,0.02044176,114600.0,114590.0,0.123138]
[1758502561065,0.02044176,114600.0,114590.0,0.340324]
[1758502561361,0.3608,114610.0,114600.0,0.1231303]
[1758502561566,0.3608,114610.0,114600.0,0.5575023]
[1758502561865,0.3608,114610.0,114600.0,0.8075023]
[1758502562063,0.3608,114610.0,114600.0,1.7156223]
[1758502562461,0.3608,114610.0,114600.0,0.8075023]
[1758502562657,0.3608,114610.0,114600.0,1.7156223]
[1758502562862,0.3608,114610.0,114600.0,0.8075023]
[1758502563164,0.3608,114610.0,114600.0,0.5903163]
[1758502563364,0.3608,114610.0,114600.0,1.4982363]
[1758502564465,0.38338,114610.0,114600.0,1.4979963]
[1758502564667,0.38338,114610.0,114600.0,1.2808103]
[1758502564866,0.3608,114610.0,114600.0,1.4979963]
[1758502565065,0.3608,114610.0,114600.0,1.2807703]
[1758502565266,0.3608,114610.0,114600.0,1.4979563]
[1758502565465,0.38338,114610.0,114600.0,1.0306503]
[1758502565768,0.863196,114610.0,114600.0,1.0306103]
[1758502566066,0.63338,114610.0,114600.0,1.2477963]
[1758502566267,0.3608,114610.0,114600.0,1.2481963]
[1758502566655,0.3608,114610.0,114600.0,1.46517582]
[1758502566866,0.3608,114610.0,114600.0,0.55769582]
[1758502567067,0.3608,114610.0,114600.0,0.1235303]
[1758502567268,0.38338,114610.0,114600.0,1.46485582]
[1758502567472,0.38338,114610.0,114600.0,0.1235303]
[1758502567666,0.60046276,114610.0,114600.0,1.24777306]
[1758502567866,0.60046276,114610.0,114600.0,1.24729306]
[1758502568068,0.60046276,114610.0,114600.0,0.34061306]
[1758502568268,0.3608,114610.0,114600.0,1.46473582]
[1758502569172,0.3608,114610.0,114600.0,0.55769582]
[1758502569470,0.3608,114610.0,114600.0,1.46449582]
[1758502569671,0.3608,114610.0,114600.0,0.55769582]
[1758502569874,0.3608,114610.0,114600.0,1.46445582]
[1758502570170,0.3608,114610.0,114600.0,1.46437582]
[1758502570673,0.3608,114610.0,114600.0,1.46433582]
[1758502570674,0.38396,114610.0,114600.0,1.46433582]
[1758502570973,0.38396,114610.0,114600.0,0.55769582]
[1758502571167,0.38396,114610.0,114600.0,1.46425582]
[1758502571470,0.3608,114610.0,114600.0,1.46425582]
[1758502572373,0.86448276,114610.0,114600.0,0.1235303]
[1758502572565,0.86448276,114610.0,114600.0,0.02238]
[1758502573174,0.86448276,114610.0,114600.0,0.02278]
[1758502573372,0.0366,114600.0,114590.0,0.8773]
[1758502573563,0.83156552,114600.0,114590.0,0.9653078]
[1758502573760,0.3974,114600.0,114590.0,0.9645078]
[1758502573968,0.3974,114600.0,114590.0,0.9785478]
[1758502573969,0.61448276,114600.0,114590.0,0.9785478]
[1758502574167,0.61448276,114600.0,114590.0,0.9781478]
[1758502574473,0.61448276,114600.0,114590.0,1.19563056]
[1758502574668,0.38396,114600.0,114590.0,1.19563056]
[1758502574970,0.3608,114600.0,114590.0,1.19563056]
[1758502576369,0.3608,114610.0,114590.0,1.41271332]
[1758502576561,0.3608,114610.0,114600.0,0.55698572]
[1758502579572,0.38396,114610.0,114600.0,0.1228202]
[1758502579774,0.38396,114610.0,114600.0,1.46202572]
[1758502580166,0.3608,114610.0,114600.0,1.46202572]
[1758502581467,0.3608,114610.0,114600.0,0.55698572]
[1758502581662,0.3608,114610.0,114600.0,1.46170572]
[1758502583274,0.3608,114610.0,114600.0,0.55698572]
[1758502583467,0.38396,114610.0,114600.0,1.37418552]
[1758502583779,0.60104276,114610.0,114600.0,1.24426296]
[1758502584179,0.60104276,114610.0,114600.0,1.24466296]
[1758502584477,0.60104276,114610.0,114600.0,0.1232202]
[1758502584674,0.60104276,114610.0,114600.0,1.24462296]
[1758502585080,0.60104276,114610.0,114600.0,0.34030296]
[1758502585377,0.60104276,114610.0,114600.0,1.0268602]
[1758502585574,0.60104276,114610.0,114600.0,1.24434296]
[1758502585777,0.86444276,114610.0,114600.0,0.02238]
[1758502585969,0.86444276,114610.0,114600.0,0.1091802]
[1758502586166,0.86444276,114610.0,114600.0,0.1095802]
[1758502586865,0.86444276,114610.0,114600.0,0.1091802]
[1758502587070,0.86444276,114610.0,114600.0,0.1095802]
[1758502587979,0.03669,114580.0,114560.0,0.19809901]
[1758502588282,0.75829,114570.0,114560.0,0.0244]
[1758502588571,1.19245552,114570.0,114560.0,0.0004]
[1758502588777,1.44245552,114570.0,114560.0,0.0004]
[1758502589478,0.03669,114560.0,114550.0,0.92548]
[1758502589778,0.83165552,114560.0,114550.0,1.0127182]
[1758502590574,0.7371166,114560.0,114550.0,1.0127182]
[1758502590768,0.7371166,114560.0,114550.0,0.1092382]
[1758502591277,0.40620223,114560.0,114550.0,0.1092382]
[1758502591480,0.74582883,114560.0,114550.0,0.1092382]
[1758502592070,0.74582883,114560.0,114550.0,0.0008]
[1758502592478,0.03669,114550.0,114540.0,1.0116456]
[1758502592674,0.7371166,114550.0,114540.0,1.0124456]
[1758502593469,0.7371166,114550.0,114540.0,0.9244]
[1758502593875,0.7371166,114550.0,114540.0,0.9248]
[1758502594080,0.7371166,114550.0,114540.0,0.9032]
[1758502594273,0.7371166,114550.0,114540.0,0.9036]
[1758502594474,0.9871166,114550.0,114540.0,0.9036]
[1758502594779,0.9871166,114550.0,114510.0,1.9387762]
[1758502594780,0.02329,114520.0,114510.0,1.9387762]
[1758502594984,0.38409,114520.0,114510.0,2.8413362]
[1758502595279,0.39749,114520.0,114510.0,2.8413362]
[1758502595473,0.39749,114520.0,114510.0,1.9371762]
[1758502595675,0.7368038,114520.0,114510.0,0.0004]
[1758502595875,0.02329,114490.0,114480.0,0.3066905]
[1758502596081,0.39749,114490.0,114480.0,0.3066911]
[1758502596281,0.38409,114490.0,114480.0,0.3066911]
[1758502596477,0.39272682,114490.0,114480.0,0.3066911]
[1758502596676,0.39272682,114490.0,114480.0,0.2194]
[1758502597384,0.39272682,114490.0,114480.0,0.3066912]
[1758502597586,0.39272682,114490.0,114480.0,0.2194]
[1758502597780,0.74575342,114490.0,114480.0,0.20608]
[1758502597972,0.74575342,114490.0,114480.0,0.0212]
[1758502598172,0.03669,114480.0,114470.0,0.0228]
[1758502598376,0.7371166,114480.0,114460.0,0.90216]
[1758502598577,0.3742,114470.0,114460.0,0.92336]
[1758502598782,0.39749,114470.0,114460.0,0.92336]
[1758502598976,0.7371166,114470.0,114460.0,0.92336]
[1758502599579,0.7371166,114470.0,114460.0,0.92376]
[1758502599784,0.39749,114470.0,114460.0,0.92376]
[1758502599980,0.39749,114470.0,114460.0,0.92336]
[1758502600287,0.39749,114470.0,114460.0,0.92376]
[1758502600678,0.9871166,114470.0,114460.0,0.0004]
[1758502600881,0.0134,114450.0,114440.0,2.74024]
[1758502601186,0.7138266,114450.0,114440.0,2.741]
[1758502601380,0.3742,114450.0,114440.0,2.741]
[1758502601784,0.3742,114450.0,114440.0,2.8283217]
[1758502602283,0.3608,114450.0,114440.0,3.1798583]
[1758502602488,0.3608,114450.0,114440.0,2.8402317]
[1758502603283,0.3742,114460.0,114450.0,0.1085141]
[1758502603483,0.39749,114460.0,114450.0,0.1085141]
[1758502603986,0.3608,114460.0,114450.0,0.4600507]
[1758502604189,0.39749,114460.0,114450.0,0.1204241]
[1758502604589,0.45354338,114460.0,114450.0,0.1204241]
[1758502605288,0.45354338,114460.0,114450.0,0.4600507]
[1758502605591,0.43025338,114460.0,114450.0,0.1204241]
[1758502606690,0.45354338,114460.0,114450.0,0.1204241]
[1758502606891,0.06955338,114460.0,114450.0,0.7100507]
[1758502607079,0.06955338,114460.0,114450.0,0.3704241]
[1758502607282,0.46704338,114460.0,114450.0,0.3704241]
[1758502607792,0.45364338,114460.0,114450.0,0.3704241]
[1758502607986,0.06955338,114460.0,114450.0,0.3704241]
[1758502608390,0.09284338,114460.0,114450.0,0.7100507]
[1758502608784,0.06955338,114460.0,114450.0,0.7100507]
[1758502609984,0.45364338,114460.0,114450.0,0.7100507]
[1758502610186,0.45364338,114460.0,114450.0,0.1204241]
[1758502610391,0.80666998,114460.0,114450.0,0.922]
[1758502610592,0.80666998,114460.0,114450.0,1.009314]
[1758502610791,0.46704338,114460.0,114450.0,0.108514]
[1758502611090,0.46704338,114460.0,114450.0,1.009314]
[1758502611592,0.09284338,114460.0,114450.0,1.3608506]
[1758502611792,0.45364338,114460.0,114450.0,1.3608506]
[1758502612184,0.45364338,114460.0,114450.0,0.120424]
[1758502612384,0.45364338,114460.0,114450.0,1.3606906]
[1758502613584,0.45364338,114460.0,114450.0,1.021064]
[1758502613786,0.45364338,114460.0,114450.0,0.4600506]
[1758502614094,0.46651338,114460.0,114450.0,1.020704]
[1758502614479,0.45364338,114460.0,114450.0,0.120424]
[1758502614686,0.43035338,114460.0,114450.0,1.020704]
[1758502614983,0.43035338,114460.0,114450.0,1.3603306]
[1758502615789,0.06955338,114460.0,114450.0,1.3603306]
[1758502615980,0.06955338,114460.0,114450.0,1.7211306]
[1758502616183,0.06955338,114460.0,114450.0,1.3603306]
[1758502616383,0.06955338,114460.0,114450.0,1.3600106]
[1758502616579,0.0001,114460.0,114450.0,1.3600106]
[1758502616991,0.0001,114460.0,114450.0,1.9708106]
[1758502617195,0.3609,114460.0,114450.0,1.6098906]
[1758502617392,0.38381,114460.0,114450.0,1.270264]
[1758502617686,0.39668,114460.0,114450.0,1.6098906]
[1758502617892,0.39668,114460.0,114450.0,1.020144]
[1758502618091,0.39668,114460.0,114450.0,0.120424]
[1758502618291,0.46790027,114460.0,114450.0,1.020144]
[1758502618891,0.10710027,114460.0,114450.0,0.120424]
[1758502619195,0.09423027,114460.0,114450.0,1.3596106]
[1758502619396,0.07132027,114460.0,114450.0,1.3596106]
[1758502620103,0.0001,114460.0,114450.0,1.7204106]
[1758502620391,0.42610523,114490.0,114480.0,0.109051]
[1758502620597,0.42610523,114490.0,114480.0,0.121111]
[1758502620792,0.42610523,114490.0,114480.0,0.109051]
[1758502621190,0.42610523,114490.0,114480.0,1.008331]
[1758502621592,0.57090523,114490.0,114480.0,0.109051]
[1758502621890,0.42610523,114490.0,114480.0,1.020391]
[1758502622095,0.38979523,114490.0,114480.0,1.020391]
[1758502622296,0.41375998,114490.0,114480.0,1.020391]
[1758502622689,0.02035841,114490.0,114480.0,1.3600176]
[1758502622887,0.02035841,114490.0,114480.0,1.3597376]
[1758502623689,0.39265895,114500.0,114490.0,0.1209535]
[1758502623890,0.41651584,114500.0,114490.0,1.0197935]
[1758502624090,0.41651584,114500.0,114490.0,0.1209535]
[1758502624391,1.01901244,114500.0,114490.0,0.89876]
[1758502624588,1.01901244,114500.0,114490.0,0.0004]
[1758502624991,0.03578,114490.0,114480.0,1.0077708]
[1758502625299,0.76006349,114490.0,114480.0,1.0077708]
[1758502625499,0.76006349,114490.0,114480.0,0.1090508]
[1758502625801,0.76006349,114490.0,114480.0,0.9858108]
[1758502626190,0.8288702,114490.0,114480.0,0.9858108]
[1758502626395,1.0788702,114490.0,114480.0,0.89848]
[1758502626594,0.03578,114480.0,114470.0,0.0872943]
[1758502626795,0.69070883,114480.0,114470.0,0.0872943]
[1758502626997,0.69070883,114480.0,114470.0,0.9856143]
[1758502627492,0.42043689,114480.0,114470.0,0.0876943]
[1758502627698,0.45114183,114480.0,114470.0,0.0872943]
[1758502627898,0.45114183,114480.0,114470.0,0.9858543]
[1758502628097,0.45114183,114480.0,114470.0,0.0876943]
[1758502628298,0.45114183,114480.0,114470.0,0.9857785]
[1758502628498,0.45114183,114480.0,114470.0,0.0876985]
[1758502628696,0.45114183,114480.0,114470.0,0.9857385]
[1758502629297,0.45114183,114480.0,114470.0,1.0074985]
[1758502629497,0.42043689,114480.0,114470.0,1.0074985]
[1758502629993,0.42043689,114480.0,114470.0,0.9857385]
[1758502630199,0.45114183,114480.0,114470.0,0.9857385]
[1758502630703,0.42043689,114480.0,114470.0,1.0074985]
[1758502631688,0.56523689,114480.0,114470.0,1.0074985]
[1758502632295,0.42043689,114480.0,114470.0,1.0074985]
[1758502632491,0.42043689,114480.0,114470.0,1.0207485]
[1758502633595,0.69070883,114480.0,114470.0,0.89788]
[1758502633996,0.03642,114470.0,114460.0,0.02146]
[1758502634190,0.42107689,114470.0,114460.0,1.0068064]
[1758502634395,0.42107689,114470.0,114460.0,1.0060064]
[1758502634597,0.42107689,114470.0,114460.0,1.0064064]
[1758502634795,0.42107689,114470.0,114460.0,1.0063664]
[1758502635402,0.42107689,114470.0,114460.0,1.0062864]
[1758502635894,0.42107689,114470.0,114460.0,0.1091664]
[1758502636096,0.42107689,114470.0,114460.0,1.0062064]
[1758502636295,0.40762689,114470.0,114460.0,1.0194564]
[1758502636793,0.42107689,114470.0,114460.0,0.1091664]
[1758502636994,0.42107689,114470.0,114460.0,0.02186]
[1758502637194,0.42107689,114470.0,114460.0,0.91866]
[1758502637403,0.42107689,114470.0,114460.0,0.91826]
[1758502637595,0.42107689,114470.0,114460.0,0.91866]
[1758502637795,0.42107689,114470.0,114460.0,0.02186]
[1758502637993,0.69134883,114470.0,114460.0,0.02186]
[1758502638306,0.69134883,114470.0,114460.0,0.89708]
[1758502638699,0.69134883,114470.0,114460.0,0.89668]
[1758502638901,0.69134883,114470.0,114460.0,0.89708]
[1758502639794,0.42107689,114470.0,114460.0,0.89708]
[1758502639993,0.42107689,114470.0,114460.0,0.1091663]
[1758502640196,0.42107689,114470.0,114460.0,1.0055663]
[1758502640808,0.42107689,114470.0,114460.0,0.91826]
[1758502641001,0.42107689,114470.0,114460.0,1.0055663]
[1758502641502,0.42107689,114470.0,114460.0,0.02186]
[1758502641702,0.42107689,114470.0,114460.0,0.89672]
[1758502642005,0.69134883,114470.0,114460.0,1.0054863]
[1758502642802,0.69134883,114470.0,114460.0,0.89664]
[1758502644207,0.69134883,114470.0,114460.0,1.0054063]
[1758502644406,0.42107689,114470.0,114460.0,1.0054063]
[1758502644806,0.42107689,114470.0,114460.0,0.9181]
[1758502645503,0.69134883,114470.0,114460.0,1.0054063]
[1758502645705,0.42107689,114470.0,114460.0,1.0054063]
[1758502646308,0.40762689,114470.0,114460.0,1.0173163]
[1758502646610,0.42143689,114470.0,114460.0,1.0173163]
[1758502646809,0.41595845,114480.0,114470.0,0.1090787]
[1758502646999,0.43930254,114480.0,114470.0,0.1223287]
[1758502647205,0.40308845,114480.0,114470.0,0.1223287]
[1758502647808,0.02018845,114480.0,114470.0,0.64260064]
[1758502648107,0.38098845,114480.0,114470.0,0.64260064]
[1758502648302,0.38098845,114480.0,114470.0,0.3723287]
[1758502649103,0.38098845,114480.0,114470.0,1.2677287]
[1758502649304,0.02018845,114480.0,114470.0,1.2677287]
[1758502649503,0.38098845,114480.0,114470.0,1.2677287]
[1758502649707,0.02018845,114480.0,114470.0,1.2677287]
[1758502650014,0.02018845,114480.0,114470.0,1.53800064]
[1758502650214,0.06880671,114490.0,114480.0,0.121131]
[1758502650408,0.39184895,114500.0,114490.0,0.1223134]
[1758502650712,0.39184895,114500.0,114490.0,1.0173934]
[1758502651307,0.00894895,114500.0,114490.0,1.28766534]
[1758502651501,0.41706783,114510.0,114500.0,0.1209658]
[1758502651906,0.48587658,114510.0,114500.0,0.1209658]
[1758502652511,0.44996658,114510.0,114500.0,0.1209658]
[1758502653009,0.44996658,114510.0,114500.0,0.3709658]
[1758502653316,0.38115783,114510.0,114500.0,0.3709658]
[1758502653812,0.38115783,114510.0,114500.0,1.2655658]
[1758502654014,0.02035783,114510.0,114500.0,0.3709658]
[1758502654204,0.02035783,114510.0,114500.0,1.2655258]
[1758502654401,0.02035783,114510.0,114500.0,1.53579774]
[1758502654602,0.39169585,114520.0,114510.0,0.1222981]
[1758502655409,0.39169585,114520.0,114510.0,1.0165781]
[1758502655611,0.39169585,114520.0,114510.0,0.1222981]
[1758502655910,0.39169585,114520.0,114510.0,1.0165781]
[1758502656411,0.46051246,114520.0,114510.0,1.0165781]
[1758502656607,0.46051246,114520.0,114510.0,0.1222981]
[1758502656810,0.46051246,114520.0,114510.0,1.0163781]
[1758502657916,0.46051246,114520.0,114510.0,0.1222981]
[1758502658110,0.46051246,114520.0,114510.0,1.0161381]
[1758502659010,0.47432246,114520.0,114510.0,1.0028881]
[1758502659410,0.47432246,114520.0,114510.0,1.0032881]
[1758502659612,0.47432246,114520.0,114510.0,1.0031281]
[1758502660316,0.47432246,114520.0,114510.0,1.0030481]
[1758502660519,0.47432246,114520.0,114510.0,0.1094481]
[1758502660905,0.47432246,114520.0,114510.0,0.1090481]
[1758502661113,0.9945944,114520.0,114510.0,1.0024081]
[1758502661314,0.72432246,114520.0,114510.0,1.0028081]
[1758502661512,0.47432246,114520.0,114510.0,1.0028081]
[1758502661716,0.47432246,114520.0,114510.0,1.0147181]
[1758502661914,0.46051246,114520.0,114510.0,1.28459004]
[1758502662116,0.43841246,114520.0,114510.0,1.28499004]
[1758502662312,0.36959585,114520.0,114510.0,1.0147181]
[1758502663319,0.00879585,114520.0,114510.0,1.0147181]
[1758502663518,0.39671,114530.0,114520.0,0.1090409]
[1758502664809,0.39671,114530.0,114520.0,1.0018409]
[1758502665409,0.4665048,114530.0,114520.0,1.0018409]
[1758502665922,0.47541143,114530.0,114520.0,1.0018409]
[1758502667822,0.47541143,114530.0,114520.0,0.1090409]
[1758502668022,0.47541143,114530.0,114520.0,1.0015209]
[1758502668921,0.43950143,114530.0,114520.0,1.53385284]
[1758502669117,0.00890663,114530.0,114520.0,1.53385284]
[1758502669318,0.3608,114540.0,114530.0,0.1222832]
[1758502669515,0.3608,114540.0,114530.0,0.39255514]
[1758502670014,0.3829,114540.0,114530.0,0.39255514]
[1758502670217,0.45362398,114540.0,114530.0,0.39255514]
[1758502670722,0.43152398,114540.0,114530.0,0.39255514]
[1758502671717,0.44045498,114540.0,114530.0,0.39255514]
[1758502672524,0.44045498,114540.0,114530.0,0.1222832]
[1758502672919,0.47636498,114540.0,114530.0,0.1222832]
[1758502673128,0.47636498,114540.0,114530.0,1.0005532]
[1758502673322,0.47636498,114540.0,114530.0,0.02178]
[1758502673520,1.01982966,114540.0,114530.0,0.8918]
[1758502673826,1.01982966,114540.0,114530.0,0.0004]
[1758502674026,0.03542,114530.0,114520.0,0.1098269]
[1758502674330,0.39622,114530.0,114520.0,1.0019069]
[1758502674717,0.41942165,114530.0,114520.0,1.0019069]
[1758502678225,0.41942165,114530.0,114520.0,1.0138169]
[1758502678618,0.41942165,114530.0,114520.0,1.0019069]
[1758502679125,0.41942165,114530.0,114520.0,1.0138169]
[1758502679327,0.38942165,114530.0,114520.0,1.0138169]
[1758502681130,0.38400165,114530.0,114520.0,1.0138169]
[1758502682227,0.44045498,114540.0,114530.0,0.0872533]
[1758502682528,0.46371311,114540.0,114530.0,0.1225733]
[1758502682935,0.48620311,114540.0,114530.0,0.1225733]
[1758502683626,0.49913311,114540.0,114530.0,0.9997033]
[1758502684132,0.49913311,114540.0,114530.0,1.0001033]
[1758502684333,0.49913311,114540.0,114530.0,1.0128533]
[1758502684724,0.49913311,114540.0,114530.0,1.0001033]
[1758502685034,1.01940505,114540.0,114530.0,0.0004]
[1758502685231,1.01940505,114540.0,114530.0,0.9774933]
[1758502685432,1.01940505,114540.0,114530.0,0.9770933]
[1758502686033,1.01940505,114540.0,114530.0,0.9774933]
[1758502686533,1.08892632,114540.0,114530.0,0.0876533]
[1758502687639,1.08892632,114540.0,114530.0,0.1102233]
[1758502688530,0.74913311,114540.0,114530.0,0.1102233]
[1758502689535,1.08892632,114540.0,114530.0,0.1102233]
[1758502690736,1.08892632,114540.0,114530.0,0.1228433]
[1758502691432,0.74913311,114540.0,114530.0,0.1228433]
[1758502691634,0.89413311,114540.0,114530.0,0.1228433]
[1758502691932,0.89413311,114540.0,114530.0,0.1102233]
[1758502692326,1.23392632,114540.0,114530.0,0.1102233]
[1758502694528,0.49913311,114540.0,114530.0,0.1102233]